bitfinex/quotes_ETHUSD_20220213
["timestamp","ask_amount","ask_price","bid_price","bid_amount"]
[1644741739325,1.45179456,2929.9,2929.8,1.45315]
[1644741740263,1.45179456,2929.9,2929.8,0.6]
[1644741740462,1.45179456,2929.9,2929.8,0.3]
[1644741740664,1.45179456,2929.9,2929.7,0.31094912]
[1644741741063,1.45179456,2929.9,2929.6,0.3]
[1644741741264,1.45179456,2929.9,2929.7,0.0109492]
[1644741742265,1.45179456,2929.9,2929.6,0.496]
[1644741742464,1.45179456,2929.9,2929.7,0.00981942]
[1644741743314,1.45179456,2929.9,2929.6,0.496]
[1644741743712,1.45179456,2929.9,2929.6,0.796]
[1644741744114,1.45179456,2929.9,2929.6,1.096]
[1644741746017,1.45179456,2929.9,2929.8,0.03204965]
[1644741746216,4.77934085,2929.9,2929.8,0.03204965]
[1644741746617,4.49007079,2929.9,2929.8,0.03204965]
[1644741746816,1.45179456,2929.9,2929.8,0.03204965]
[1644741748060,4.49305147,2929.9,2929.8,0.03204965]
[1644741749667,10.14341256,2929.9,2929.8,0.03204965]
[1644741749873,10.31401256,2929.9,2929.8,0.03204965]
[1644741750065,10.31401256,2929.9,2929.7,0.01095394]
[1644741750266,0.1706,2929.8,2929.7,0.01095394]
[1644741750466,1.45179456,2929.8,2929.7,0.01095394]
[1644741750719,1.07742392,2929.5,2928.9,0.85341]
[1644741750910,1.45179456,2929.4,2928.9,1.45341]
[1644741751511,1.45179456,2929.3,2928.9,1.45341]
[1644741752011,0.19395673,2929.9,2929.0,0.00446335]
[1644741752313,1.45207768,2929.8,2929.0,0.17506335]
[1644741752910,1.45207768,2929.8,2929.0,0.1706]
[1644741753311,1.0604028,2929.9,2929.3,0.00446297]
[1644741753312,1.4520784,2929.7,2929.3,0.00446297]
[1644741753513,1.4520784,2929.6,2929.3,0.00446297]
[1644741753712,1.4520784,2929.5,2929.3,0.00446297]
[1644741753911,1.4520784,2929.4,2929.3,0.00446297]
[1644741754114,1.0604028,2929.9,2929.0,0.1706]
[1644741754312,1.452057,2929.8,2929.0,0.1706]
[1644741754569,1.452057,2929.8,2929.2,0.00446304]
[1644741755366,0.02412917,2929.2,2929.1,0.03789002]
[1644741756066,0.02412917,2929.2,2929.1,0.53389002]
[1644741756267,0.02412917,2929.2,2929.1,0.83389002]
[1644741756469,0.02412917,2929.2,2929.1,4.79891677]
[1644741756770,0.02412917,2929.2,2929.1,4.97100806]
[1644741757167,0.02412917,2929.2,2929.1,24.98100806]
[1644741758614,0.02412917,2929.2,2929.1,4.97100806]
[1644741760014,0.02412917,2929.2,2929.1,1.47658131]
[1644741760418,0.02412917,2929.2,2929.1,21.48658131]
[1644741760615,0.6851776,2930.0,2929.1,21.48658131]
[1644741760816,1.45189169,2929.9,2929.5,1.15319]
[1644741761015,1.45189169,2929.9,2929.6,0.496]
[1644741761615,1.45189169,2929.9,2929.6,0.50696002]
[1644741762561,1.45189169,2929.9,2929.6,0.496]
[1644741762760,1.45189169,2929.9,2929.6,0.50696002]
[1644741763768,1.45189169,2929.9,2929.6,0.496]
[1644741763966,1.45189169,2929.9,2929.6,0.50696002]
[1644741764971,1.45189169,2929.9,2929.6,1.34907]
[1644741765268,1.45189169,2929.9,2929.7,0.3]
[1644741765471,1.45189169,2929.9,2929.8,0.496]
[1644741765719,1.45189169,2929.9,2929.8,0.796]
[1644741767116,0.66104843,2930.0,2929.9,0.853]
[1644741767316,0.01095833,2930.1,2930.0,3.55]
[1644741767519,0.00394015,2930.5,2930.0,8.36920898]
[1644741767718,0.01095855,2930.1,2930.0,4.99130027]
[1644741767918,0.01095855,2930.1,2930.0,4.30903027]
[1644741768618,0.00394015,2930.8,2930.0,4.30903027]
[1644741768818,0.01095847,2930.2,2930.0,4.30903027]
[1644741769019,0.01095847,2930.2,2930.1,3.4209285]
[1644741769218,0.01095847,2930.2,2930.1,4.2169285]
[1644741769864,0.00394015,2930.8,2930.1,4.2169285]
[1644741770065,1.45167625,2930.7,2930.4,0.85295]
[1644741770264,1.45167625,2930.7,2930.5,0.496]
[1644741771266,1.45167625,2930.6,2930.5,0.496]
[1644741776212,1.45167625,2930.6,2930.5,0.53309884]
[1644741777267,0.01096283,2930.7,2930.5,0.53309884]
[1644741777462,1.45167625,2930.6,2930.5,0.53309884]
[1644741779671,0.01096283,2930.7,2930.5,0.53309884]
[1644741779874,0.01096283,2930.7,2930.1,0.1706]
[1644741779875,1.51149681,2930.3,2930.1,0.1706]
[1644741780071,1.51149681,2930.3,2930.2,0.496]
[1644741780271,2.9633538,2930.3,2930.1,0.1706]
[1644741780473,1.45185699,2930.2,2930.1,0.1706]
[1644741782613,1.45185699,2930.2,2930.1,0.51601453]
[1644741783815,1.45185699,2930.2,2929.8,0.3]
[1644741784218,1.45185699,2930.2,2929.7,0.01096567]
[1644741784458,1.45185699,2930.2,2929.5,0.3]
[1644741784662,1.12201177,2930.1,2929.7,0.01096534]
[1644741785064,1.45185699,2930.0,2929.7,0.01096534]
[1644741785465,1.45185699,2930.0,2929.4,0.496]
[1644741785765,1.45185699,2929.9,2929.7,0.01096501]
[1644741785965,0.01096345,2930.1,2929.7,0.01096501]
[1644741786169,1.45198672,2930.0,2929.7,0.86410501]
[1644741786365,1.45198672,2930.0,2929.7,0.01096501]
[1644741786565,2.45210271,2930.0,2929.7,0.01096501]
[1644741786766,1.45198672,2929.9,2929.4,0.83869129]
[1644741786967,1.45198672,2929.9,2929.7,0.01096501]
[1644741787968,1.45198672,2929.9,2929.4,0.83869129]
[1644741788210,1.45198672,2929.9,2929.7,0.01096507]
[1644741789211,1.45198672,2929.9,2929.4,0.66809129]
[1644741789515,1.45198672,2929.9,2929.7,0.01096507]
[1644741789714,0.01096334,2930.1,2929.7,0.01096507]
[1644741789914,1.45197146,2930.0,2929.7,0.01096507]
[1644741790315,0.0231674,2929.8,2929.6,0.03526684]
[1644741790514,0.0231674,2929.8,2929.7,0.01096501]
[1644741790716,1.47517904,2929.8,2929.7,0.01096501]
[1644741791516,0.0231674,2929.8,2929.6,1.74164684]
[1644741791717,0.0231674,2929.8,2929.6,1.75261198]
[1644741791962,0.0231674,2929.8,2929.6,0.04623198]
[1644741792363,1.45204865,2929.7,2929.6,0.04623198]
[1644741792763,1.45204865,2929.7,2929.6,0.03526684]
[1644741792963,0.0231674,2929.8,2929.6,0.03526684]
[1644741793263,1.45207431,2929.7,2929.6,0.03526684]
[1644741795469,1.45207431,2929.7,2929.3,3.00994987]
[1644741795470,1.47520986,2929.7,2929.5,0.0469046]
[1644741795722,0.02313555,2929.7,2929.5,0.0469046]
[1644741796311,0.02313555,2929.7,2929.5,0.0359393]
[1644741796517,0.02313555,2929.7,2929.5,0.04690467]
[1644741797511,0.02313555,2929.7,2929.5,0.0359393]
[1644741797713,0.02313555,2929.7,2929.5,0.04690467]
[1644741798714,0.02313555,2929.7,2929.5,0.0359393]
[1644741798915,0.02313555,2929.7,2929.5,0.04690467]
[1644741799973,0.02313555,2929.7,2929.5,0.0359393]
[1644741800173,1.45207396,2929.6,2929.5,0.04690467]
[1644741800372,1.45207396,2929.6,2929.5,0.31096537]
[1644741800777,0.01096289,2930.1,2929.5,0.01096537]
[1644741800975,1.45201931,2930.0,2929.5,0.01096537]
[1644741801174,1.45201931,2930.0,2929.3,3.21665058]
[1644741801374,1.45201931,2929.9,2929.7,0.01096507]
[1644741801573,1.45201931,2929.8,2929.7,0.01096507]
[1644741801973,1.45201931,2930.0,2929.7,0.01096507]
[1644741802173,1.45201931,2929.9,2929.7,0.01096507]
[1644741802472,1.45201931,2929.8,2929.7,0.01096501]
[1644741802873,0.01096345,2930.1,2929.8,0.00139543]
[1644741803074,1.45200573,2930.0,2929.8,0.00139543]
[1644741803713,1.45200573,2929.9,2929.8,0.00139543]
[1644741804112,1.45200573,2930.0,2929.8,0.00139543]
[1644741804916,1.45200573,2929.9,2929.8,0.00139543]
[1644741805316,0.01096356,2930.1,2929.8,0.00139543]
[1644741805521,1.45200573,2930.0,2929.8,0.03665954]
[1644741806119,1.45200573,2929.9,2929.8,0.03665954]
[1644741806319,0.01096356,2930.1,2929.8,0.03665954]
[1644741806519,1.45200573,2930.0,2929.8,0.03665954]
[1644741807368,1.35200573,2929.9,2929.8,0.03665954]
[1644741807769,0.01096356,2930.1,2929.8,0.03665954]
[1644741808368,1.51149681,2930.3,2929.8,0.03665954]
[1644741808567,0.01096367,2930.1,2929.8,0.03665954]
[1644741809171,0.01096367,2930.1,2929.9,0.6666]
[1644741809576,1.51149681,2930.3,2929.9,1.2666]
[1644741809976,0.01096367,2930.1,2929.9,1.43869129]
[1644741810177,0.01096367,2930.1,2929.9,3.14471129]
[1644741810375,0.01096367,2930.1,2930.0,1.0]
[1644741810576,0.01096367,2930.1,2930.0,1.496]
[1644741810815,1.51149681,2930.3,2930.0,1.496]
[1644741811013,0.01096359,2930.2,2930.0,1.496]
[1644741811512,0.01096359,2930.2,2930.0,4.81447056]
[1644741811712,0.01096359,2930.2,2930.0,1.496]
[1644741811913,1.51149681,2930.3,2930.0,1.496]
[1644741812117,0.01096351,2930.2,2930.0,1.496]
[1644741812515,0.01096351,2930.2,2930.0,0.496]
[1644741813114,1.51149681,2930.3,2930.0,0.496]
[1644741813517,0.01096351,2930.2,2930.0,0.496]
[1644741813917,1.47246032,2930.3,2930.0,0.496]
[1644741814778,0.99199999,2929.9,2929.8,0.03665954]
[1644741815676,0.99199999,2929.9,2929.8,0.00139543]
[1644741820519,1.01519924,2929.9,2929.8,0.00139543]
[1644741827418,2.46730719,2929.9,2929.8,0.00139543]
[1644741828621,3.49976624,2929.9,2929.8,0.00139543]
[1644741829220,2.46730719,2929.9,2929.8,0.00139543]
[1644741834014,1.01519924,2929.9,2929.8,0.00139543]
[1644741834213,2.46719668,2929.9,2929.8,0.00139543]
[1644741836718,1.01519924,2929.9,2929.8,0.49739543]
[1644741836966,1.01519924,2929.9,2929.8,1.79739543]
[1644741837366,1.01519924,2929.9,2929.8,0.79739543]
[1644741837566,1.01519924,2929.9,2929.8,5.08005754]
[1644741837767,1.01519924,2929.9,2929.8,6.08005754]
[1644741838171,1.01392211,2929.9,2929.8,6.08005754]
[1644741838767,1.01392211,2929.9,2929.8,6.25065754]
[1644741840173,1.01392211,2929.9,2929.8,2.82112543]
[1644741840372,1.01392211,2929.9,2929.8,1.82112543]
[1644741841320,1.01392211,2929.9,2929.8,5.1468035]
[1644741841817,1.01392211,2929.9,2929.8,6.1468035]
[1644741842018,1.01392211,2929.9,2929.8,5.9762035]
[1644741843223,1.01392211,2929.9,2929.8,2.65052543]
[1644741843424,1.01392211,2929.9,2929.8,1.65052543]
[1644741843619,1.01392211,2929.9,2929.8,4.93661197]
[1644741843923,1.48342882,2930.3,2929.9,4.2]
[1644741844119,1.48342882,2930.3,2930.0,4.19587922]
[1644741844321,1.47246032,2930.3,2930.0,5.64885922]
[1644741844576,1.48342938,2930.3,2930.1,2.70595]
[1644741844781,1.48342938,2930.3,2930.2,3.80714303]
[1644741845076,1.48342938,2930.3,2930.2,4.10714303]
[1644741845276,1.48342938,2930.3,2930.2,5.10714303]
[1644741845476,1.47246032,2930.3,2930.2,5.10714303]
[1644741846480,1.42246032,2930.3,2930.2,5.10714303]
[1644741847082,1.42246032,2930.3,2930.2,5.96011303]
[1644741851417,1.42246032,2930.3,2930.2,25.97011303]
[1644741852065,1.42246032,2930.3,2930.2,5.96011303]
[1644741852264,1.42246032,2930.3,2930.2,25.97011303]
[1644741852467,1.42246032,2930.3,2930.2,5.96011303]
[1644741853363,1.42246032,2930.3,2930.2,25.97011303]
[1644741854166,0.0109692,2930.4,2930.3,5.90568]
[1644741854374,0.0109692,2930.4,2930.3,11.08119766]
[1644741854569,0.0109692,2930.4,2930.3,11.38119766]
[1644741854769,0.04092649,2931.0,2930.4,3.15]
[1644741854970,0.04092649,2931.0,2930.6,0.85275]
[1644741855171,0.04035807,2930.9,2930.7,5.02658897]
[1644741855372,0.04035807,2930.9,2930.8,1.0]
[1644741855572,0.04263176,2931.3,2930.8,1.496]
[1644741855815,0.00080228,2931.4,2930.8,0.796]
[1644741855816,0.04035807,2930.9,2930.8,0.796]
[1644741856012,0.04206334,2931.2,2930.8,1.796]
[1644741856211,0.00080228,2931.4,2930.8,1.796]
[1644741856212,0.04035807,2930.9,2930.8,1.796]
[1644741856419,0.00080228,2931.4,2930.8,1.796]
[1644741856420,0.04149492,2931.1,2930.8,0.796]
[1644741856612,0.04035807,2930.9,2930.8,1.796]
[1644741856815,0.00650058,2931.1,2930.8,1.796]
[1644741857015,0.04035807,2930.9,2930.8,1.796]
[1644741857213,0.04035807,2930.9,2930.8,0.796]
[1644741858715,0.04466885,2931.4,2930.8,0.796]
[1644741858920,0.04466885,2931.4,2931.0,0.8527]
[1644741858921,0.00080228,2931.4,2931.0,0.8527]
[1644741859115,0.04466885,2931.4,2931.1,0.496]
[1644741859769,0.04466885,2931.4,2931.1,1.496]
[1644741859970,0.00080228,2931.4,2931.1,0.496]
[1644741860171,0.01176996,2931.4,2931.1,0.496]
[1644741861173,0.00080228,2931.4,2931.1,0.496]
[1644741861371,0.01176996,2931.4,2931.1,1.34876]
[1644741861772,0.01176996,2931.4,2931.1,0.496]
[1644741862272,0.01176996,2931.4,2931.2,0.85273]
[1644741862473,0.00080228,2931.4,2931.3,0.496]
[1644741862672,0.01176996,2931.4,2931.3,0.496]
[1644741862871,0.01176996,2931.4,2931.3,0.796]
[1644741863413,0.01176996,2931.4,2931.3,0.3]
[1644741863613,0.00080228,2931.4,2931.3,0.3]
[1644741863816,0.00080228,2931.4,2931.0,0.3]
[1644741864217,0.00080228,2931.4,2930.9,6.26306538]
[1644741864416,0.00080228,2931.4,2931.0,3.2783761]
[1644741864820,0.00080228,2931.4,2931.1,1.0]
[1644741865019,0.00080228,2931.4,2930.9,1.94881]
[1644741865020,0.00649712,2931.3,2931.0,4.37093967]
[1644741865217,0.03315335,2931.3,2930.9,2.94881]
[1644741865918,0.02665623,2931.3,2930.9,2.94881]
[1644741866317,0.01097267,2931.2,2930.9,2.94881]
[1644741866724,0.01097267,2931.2,2930.9,2.096]
[1644741867179,0.02665623,2931.3,2930.9,2.096]
[1644741867380,0.01097275,2931.2,2930.9,2.096]
[1644741867781,0.01097275,2931.2,2930.9,5.39281964]
[1644741868382,0.02665623,2931.3,2930.9,5.39281964]
[1644741868583,0.01097275,2931.2,2930.9,5.39281964]
[1644741868984,0.01097275,2931.2,2930.9,6.24562964]
[1644741869389,0.01097275,2931.2,2930.9,2.096]
[1644741869589,0.02665623,2931.3,2930.9,2.096]
[1644741869790,0.01097275,2931.2,2930.9,2.096]
[1644741870490,0.01097275,2931.2,2931.0,0.03271818]
[1644741870726,0.00080228,2931.4,2931.0,0.33271818]
[1644741871117,0.01097267,2931.2,2931.0,0.33271818]
[1644741871716,0.01097267,2931.2,2931.0,3.62690198]
[1644741871921,0.00080228,2931.4,2931.1,1.0]
[1644741872317,1.45220711,2931.4,2931.2,0.3]
[1644741872517,0.00080228,2931.4,2931.0,0.33271818]
[1644741872720,0.00080228,2931.4,2931.1,0.3]
[1644741872721,0.00394033,2931.3,2931.1,0.3]
[1644741872919,0.00080228,2931.4,2931.1,0.3]
[1644741873219,0.00394033,2931.3,2931.1,0.3]
[1644741873421,0.01177472,2931.4,2931.1,0.3]
[1644741873620,0.01177472,2931.4,2931.0,0.33271818]
[1644741873820,0.01177472,2931.4,2931.0,0.03271818]
[1644741874221,0.01177472,2931.4,2931.1,0.3]
[1644741874470,1.45141656,2931.3,2931.0,0.33271818]
[1644741874673,1.46238908,2931.3,2931.0,0.03271818]
[1644741874874,1.46238908,2931.3,2931.1,0.3]
[1644741875072,0.01097252,2931.3,2931.1,0.3]
[1644741875271,0.01097252,2931.3,2931.0,0.03271818]
[1644741875671,0.00080228,2931.4,2931.1,10.0]
[1644741875875,0.0109726,2931.3,2931.1,10.0]
[1644741876073,1.45144339,2931.2,2931.1,10.0]
[1644741876272,1.45145839,2931.2,2931.1,10.0]
[1644741876476,1.45144068,2931.2,2931.1,10.0]
[1644741876674,1.45144068,2931.2,2931.1,8.45170648]
[1644741878217,0.0109726,2931.3,2931.1,8.45170648]
[1644741878419,1.45144068,2931.2,2931.1,8.45170648]
[1644741880623,0.00080228,2931.4,2931.1,8.45170648]
[1644741880624,0.0109726,2931.3,2931.1,8.45170648]
[1644741880821,1.45144068,2931.2,2931.1,8.45170648]
[1644741881622,1.40144068,2931.2,2931.1,8.45170648]
[1644741881823,0.0109726,2931.3,2931.1,8.45170648]
[1644741882873,0.00080228,2931.4,2931.1,8.45170648]
[1644741883076,0.01097252,2931.3,2931.1,8.45170648]
[1644741884074,0.00080228,2931.4,2931.1,8.45170648]
[1644741884275,0.01097252,2931.3,2931.1,8.45170648]
[1644741885280,0.00474261,2931.4,2931.1,8.45170648]
[1644741885580,0.00649748,2931.3,2931.1,8.45170648]
[1644741886020,0.89231653,2931.8,2931.0,0.03271818]
[1644741886021,4.19297876,2932.3,2932.0,0.90213262]
[1644741886223,1.22014989,2932.1,2932.0,0.90213262]
[1644741886420,1.10531437,2932.1,2932.0,0.90213262]
[1644741886621,0.95531437,2932.1,2932.0,0.90213262]
[1644741887432,2.25045866,2932.1,2932.0,0.90213262]
[1644741887627,0.95531437,2932.1,2932.0,0.90213262]
[1644741889571,1.29514429,2932.2,2932.0,0.90213262]
[1644741889773,0.1705,2932.1,2932.0,0.90213262]
[1644741890374,0.19718093,2932.1,2932.0,0.93776692]
[1644741892076,0.19798246,2932.1,2932.0,0.93776692]
[1644741894134,1.32262675,2932.1,2932.0,0.93776692]
[1644741895537,1.32262675,2932.1,2932.0,0.90213262]
[1644741895937,1.33183661,2932.1,2932.0,0.90213262]
[1644741896739,1.33183661,2932.1,2931.1,3.71446838]
[1644741896740,0.59940432,2931.2,2931.1,3.71446838]
[1644741896974,0.59940432,2931.2,2931.1,0.1705]
[1644741899179,0.59940432,2931.2,2931.1,5.0]
[1644741899381,0.59940432,2931.2,2931.1,6.1705]
[1644741901526,2.05085648,2931.2,2931.1,6.1705]
[1644741902728,2.05085648,2931.2,2931.1,0.1705]
[1644741902933,2.05085648,2931.2,2931.0,0.05028458]
[1644741903128,1.45145216,2931.1,2931.0,0.03930575]
[1644741903528,1.45145216,2931.1,2931.0,0.05028465]
[1644741904471,1.45145216,2931.1,2931.0,0.03930575]
[1644741905483,1.45145216,2931.1,2930.9,0.01097898]
[1644741905677,2.49207026,2931.1,2930.8,5.0]
[1644741905877,1.45145216,2931.0,2930.9,0.01097898]
[1644741906480,4.516921,2931.0,2930.9,0.01097898]
[1644741906677,1.45145216,2931.0,2930.9,0.01097898]
[1644741906879,1.45145216,2931.1,2930.8,5.0]
[1644741907178,1.45145216,2931.1,2930.8,5.01097913]
[1644741907984,1.45145216,2931.1,2930.8,5.0]
[1644741908420,1.45145216,2931.1,2930.8,5.01097913]
[1644741909122,0.52833484,2931.0,2930.8,5.01097913]
[1644741909321,1.45145216,2930.9,2930.8,5.0]
[1644741909526,1.45145216,2930.9,2930.8,5.01097913]
[1644741910529,1.45145216,2930.9,2930.8,5.0]
[1644741914377,1.979787,2930.9,2930.8,5.0]
[1644741914579,1.979787,2930.9,2930.7,0.01097929]
[1644741914781,1.45145216,2930.8,2930.7,0.01097929]
[1644741914982,4.82999863,2930.8,2930.7,7.929e-05]
[1644741915185,1.45145216,2930.8,2930.7,7.929e-05]
[1644741915485,4.95145216,2930.8,2929.7,3.1163]
[1644741915738,1.06068716,2930.0,2929.7,3.1163]
[1644741915925,1.45145216,2929.9,2929.5,1.4602]
[1644741916126,4.15220498,2930.6,2929.4,6.88450008]
[1644741916325,1.45185647,2930.5,2929.5,1.3]
[1644741916725,1.45185647,2930.5,2929.9,0.00401269]
[1644741916927,1.17192274,2930.0,2929.9,0.00401269]
[1644741917533,2.62381143,2930.0,2929.9,0.00401269]
[1644741917829,1.45188869,2930.0,2929.5,1.6]
[1644741918030,1.45188869,2930.5,2929.8,0.01048963]
[1644741918235,3.52332535,2930.4,2929.8,0.01048963]
[1644741918429,1.45188869,2930.3,2929.8,0.01048963]
[1644741918631,3.33164267,2930.2,2929.8,0.01048963]
[1644741918837,1.45188869,2930.1,2929.5,1.6]
[1644741919131,3.50796795,2930.0,2929.9,0.01048949]
[1644741919331,4.95985664,2930.0,2929.9,0.01048949]
[1644741919578,1.45188869,2930.0,2929.9,0.01048949]
[1644741919779,0.52833484,2930.0,2929.9,0.01048949]
[1644741920278,0.52833484,2930.0,2929.8,0.0104121]
[1644741921380,0.52833484,2930.0,2929.4,3.00950008]
[1644741921579,0.52833484,2930.0,2929.8,0.01041216]
[1644741921580,4.59304078,2929.9,2929.8,0.01041216]
[1644741921781,0.52833484,2930.0,2929.8,0.01041216]
[1644741923727,0.52833484,2930.0,2929.4,3.30950008]
[1644741923929,3.0442491,2929.9,2929.8,0.0104174]
[1644741924129,0.52833484,2930.0,2929.8,0.0104174]
[1644741924829,3.36811183,2930.2,2929.4,0.00360008]
[1644741925030,0.26416742,2929.7,2929.4,0.30360008]
[1644741925231,0.26416742,2929.7,2929.4,0.00360008]
[1644741925932,0.26416742,2929.7,2929.6,5.0]
[1644741926731,0.26416742,2929.7,2929.6,6.796]
[1644741927778,0.26416742,2929.7,2929.6,6.9666]
[1644741928783,0.26416742,2929.7,2929.6,6.796]
[1644741929180,0.26416742,2929.7,2929.6,7.096]
[1644741929383,6.742e-05,2929.7,2929.6,7.43869129]
[1644741929581,0.1706,2930.7,2929.6,7.43869129]
[1644741929582,0.1706,2930.7,2929.9,0.85292]
[1644741929781,0.1706,2930.7,2930.0,0.496]
[1644741929982,0.1706,2930.7,2930.3,5.0]
[1644741930181,0.1706,2930.7,2930.4,0.6666]
[1644741931229,0.1706,2930.7,2930.4,0.67701569]
[1644741931433,0.1706,2930.7,2930.4,0.50641569]
[1644741931630,1.45170627,2930.6,2930.4,0.01041569]
[1644741931927,1.1515615,2930.8,2930.4,0.01041569]
[1644741932127,1.1515615,2930.8,2930.2,1.3]
[1644741932128,1.45171005,2930.7,2930.2,1.3]
[1644741932327,1.45171005,2930.7,2930.4,0.01041576]
[1644741932928,3.09630003,2931.1,2930.4,0.01041576]
[1644741932929,1.45171005,2930.6,2930.4,0.01041576]
[1644741933227,3.09630003,2931.1,2930.2,1.3]
[1644741933428,1.45170543,2931.0,2930.2,1.3]
[1644741933627,1.45170543,2931.0,2930.4,0.01041576]
[1644741934474,1.45170543,2931.0,2930.3,0.853]
[1644741934878,1.45170543,2931.0,2930.6,0.01041598]
[1644741935481,4.57223288,2930.9,2930.6,0.01041598]
[1644741935680,1.45170543,2930.8,2930.2,1.3]
[1644741935880,0.0166169,2930.5,2930.2,1.3]
[1644741937482,0.0166169,2930.5,2930.2,1.31041645]
[1644741938084,0.0166169,2930.5,2930.2,1.3]
[1644741938325,0.0166169,2930.5,2930.2,1.31042421]
[1644741939432,0.0166169,2930.5,2930.2,1.3]
[1644741939632,0.0166169,2930.5,2930.2,0.01042421]
[1644741939834,1.45178479,2930.4,2930.2,0.01042421]
[1644741940434,1.45178479,2930.4,2929.9,0.1706]
[1644741940633,4.56505654,2930.4,2929.8,3.3247]
[1644741940834,1.45178479,2930.3,2930.2,0.01042427]
[1644741941034,0.0165942,2930.4,2930.2,0.01042427]
[1644741941632,0.0165942,2930.4,2930.1,0.1706]
[1644741942082,0.0165942,2930.4,2930.2,0.01041597]
[1644741942877,0.0165942,2930.4,2930.1,0.1706]
[1644741943076,0.0165942,2930.4,2930.0,1.15309]
[1644741943275,0.0165942,2930.4,2930.2,0.01041597]
[1644741943876,0.0165942,2930.4,2930.2,5.01041597]
[1644741944075,0.0165942,2930.4,2930.2,5.0]
[1644741944475,0.0165942,2930.4,2930.2,5.01041597]
[1644741945280,0.0165942,2930.4,2930.2,5.0]
[1644741945731,0.0165942,2930.4,2930.2,0.01041654]
[1644741946526,0.0165942,2930.4,2930.0,1.94907]
[1644741946726,0.0165942,2930.4,2930.2,0.01041654]
[1644741946925,0.0165942,2930.4,2930.2,5.01041654]
[1644741947127,0.0165942,2930.4,2930.3,0.3]
[1644741947335,0.0165942,2930.4,2930.3,1.796]
[1644741949595,0.0165942,2930.4,2930.3,0.1706]
[1644741950489,0.0165942,2930.4,2930.2,0.01041643]
[1644741951287,0.0165942,2930.4,2930.0,5.0]
[1644741951688,0.0165942,2930.4,2930.2,0.0104165]
[1644741952496,0.0165942,2930.4,2930.0,5.0]
[1644741952687,0.0165942,2930.4,2930.2,0.0104165]
[1644741953733,0.0165942,2930.4,2930.0,5.0]
[1644741953933,0.0165942,2930.4,2930.2,0.0104165]
[1644741954935,0.0165942,2930.4,2929.9,2.15312]
[1644741955142,0.0165942,2930.4,2930.2,0.0104165]
[1644741956238,0.0165942,2930.4,2929.9,2.15312]
[1644741956438,0.0165942,2930.4,2930.2,0.0104165]
[1644741957277,0.0165942,2930.4,2929.9,1.3]
[1644741957477,0.0165942,2930.4,2930.2,0.0104165]
[1644741958489,0.0165942,2930.4,2929.9,1.3]
[1644741958778,0.0165942,2930.4,2930.2,0.0104165]
[1644741959783,0.0165942,2930.4,2929.9,1.3]
[1644741959983,0.0165942,2930.4,2930.2,0.0104165]
[1644741960830,0.0165942,2930.4,2929.9,1.3]
[1644741961029,1.45179243,2930.3,2929.9,1.3]
[1644741961230,1.45179243,2930.3,2930.2,0.0104165]
[1644741962133,1.45179243,2930.3,2929.9,1.3]
[1644741962336,1.1655589,2930.1,2929.9,1.3]
[1644741962937,1.1655589,2930.1,2929.9,1.0]
[1644741963135,1.1655589,2930.1,2929.8,0.1706]
[1644741963338,1.45183005,2930.0,2929.8,0.1706]
[1644741963536,1.45183005,2930.0,2929.9,0.01041691]
[1644741963737,1.1655589,2930.1,2929.9,0.01041691]
[1644741964582,1.1646369,2930.1,2929.8,0.1706]
[1644741964782,1.1646369,2930.1,2929.9,0.01041691]
[1644741965183,1.45182979,2930.0,2929.9,0.01041691]
[1644741965782,1.45182979,2930.0,2929.7,0.17420008]
[1644741965984,1.45182979,2930.0,2929.8,0.01041697]
[1644741966985,1.45182979,2930.0,2929.7,0.17420008]
[1644741967188,1.45182979,2930.0,2929.8,0.01041706]
[1644741968237,1.45182979,2930.0,2929.7,0.17420008]
[1644741968428,1.45182979,2930.0,2929.8,0.01041706]
[1644741968827,0.01933341,2930.3,2929.8,0.01041706]
[1644741969028,1.45182687,2930.2,2929.8,0.01041706]
[1644741969230,1.45182687,2930.2,2929.7,0.17420008]
[1644741969633,1.45182687,2930.2,2929.9,0.01041693]
[1644741970236,0.0205538,2930.0,2929.9,0.01041693]
[1644741970641,1.47238067,2930.0,2929.8,5.0]
[1644741970836,0.0205538,2930.0,2929.8,5.010417]
[1644741971237,1.45184874,2929.9,2929.8,5.010417]
[1644741971741,1.45184874,2929.9,2929.8,5.0]
[1644741972581,1.45184874,2929.9,2929.7,0.01401722]
[1644741972880,1.45184874,2929.9,2929.7,0.00360008]
[1644741973082,1.45184874,2929.9,2929.7,0.01401728]
[1644741973989,3.5,2929.8,2929.7,0.01401728]
[1644741974188,4.95184874,2929.8,2929.5,0.00360008]
[1644741974386,3.5,2929.8,2929.7,0.01041721]
[1644741974585,1.45205385,2929.8,2929.7,0.01041721]
[1644741974984,2.59444132,2929.8,2929.7,0.01041721]
[1644741975486,2.59444132,2929.8,2929.6,0.01041727]
[1644741975738,1.45205385,2929.7,2929.6,0.01041727]
[1644741976529,1.45205385,2929.8,2929.3,0.00360008]
[1644741976929,1.45205385,2929.8,2929.5,0.01041741]
[1644741977532,1.45205385,2929.8,2929.5,5.01041741]
[1644741977733,1.45205385,2929.8,2929.6,0.00360008]
[1644741979236,1.45205385,2929.8,2929.6,0.01401743]
[1644741980081,0.03975124,2929.9,2929.6,0.00360008]
[1644741980282,1.45197695,2929.8,2929.6,0.01401743]
[1644741980483,0.01917447,2929.7,2929.6,0.01401743]
[1644741980685,0.01917447,2929.7,2929.6,0.01041735]
[1644741981287,0.01917447,2929.7,2929.5,5.0]
[1644741981482,0.01917447,2929.7,2929.5,5.01041742]
[1644741982085,0.01917447,2929.7,2929.5,5.31041742]
[1644741982583,0.01917447,2929.7,2929.5,5.0]
[1644741982783,0.01917447,2929.7,2929.5,0.01041749]
[1644741983733,0.01917447,2929.7,2929.3,0.17420008]
[1644741984131,0.01917447,2929.7,2929.5,0.01041749]
[1644741984533,1.45204672,2929.6,2929.5,0.01041749]
[1644741984734,1.45204958,2929.6,2929.5,0.01401757]
[1644741984933,0.01917447,2929.7,2929.5,0.00360008]
[1644741985538,0.02046375,2929.7,2929.5,0.00360008]
[1644741986434,0.02046375,2929.7,2929.5,0.01401757]
[1644741987278,0.02046375,2929.7,2929.5,0.00360008]
[1644741987477,0.02046375,2929.7,2929.5,0.01401757]
[1644741987679,1.45204662,2929.6,2929.5,0.01401757]
[1644741988582,1.45204662,2929.6,2929.5,0.00360008]
[1644741988790,0.02046375,2929.7,2929.4,0.01041756]
[1644741988984,0.02046375,2929.7,2929.4,0.01401764]
[1644741989384,0.91230921,2929.6,2929.4,0.01401764]
[1644741989787,0.91230921,2929.6,2929.4,0.00360008]
[1644741989987,0.91230921,2929.6,2929.4,0.01041763]